lending/lending_fUSD_20240809
["ID","MTS","AMOUNT","RATE_DAILY","PERIOD"]
[334543409,1723182639412,-151.0,0.00024109,7]
[334543410,1723182639422,-3000.0,0.0002415,2]
[334543411,1723182639431,-3000.0,0.0002416,2]
[334543412,1723182639440,-604.16,0.00024198,5]
[334543413,1723182639450,-500.0,0.00024198,5]
[334543414,1723182639459,-519.81523308,0.00024199,5]
[334543415,1723182639468,-246.58,0.00024199,5]
[334543416,1723182639477,-156.64,0.00024199,5]
[334543417,1723182639486,-203.44,0.00024199,5]
[334543418,1723182639495,-500.0,0.00024199,5]
[334543419,1723182639505,-500.0,0.00024199,5]
[334543420,1723182639515,-384.94,0.00024199,5]
[334543421,1723182639524,-500.0,0.00024199,5]
[334543422,1723182639533,-500.0,0.00024199,5]
[334543423,1723182639542,-827.39,0.00024199,5]
[334543424,1723182639551,-569.67,0.00024199,5]
[334543425,1723182639561,-500.0,0.00024199,5]
[334543426,1723182639571,-500.0,0.00024199,5]
[334543427,1723182639581,-297.93604668,0.00024199,5]
[334543428,1723182639590,-3973.64,0.00024199,5]
[334543429,1723182639599,-500.0,0.00024199,5]
[334543430,1723182639608,-500.0,0.00024199,5]
[334543431,1723182639617,-579.64,0.00024199,5]
[334543432,1723182639627,-219158.642,0.000242,2]
[334543433,1723182639637,-151.0,0.000242,7]
[334543434,1723182639648,-151.0,0.000242,7]
[334543435,1723182639657,-151.447567,0.000242,7]
[334543436,1723182639667,-154.284603,0.000242,7]
[334543437,1723182639676,-154.284603,0.000242,7]
[334543438,1723182639686,-185.55317953,0.000242,2]
[334543439,1723182639695,-151.935308,0.000242,7]
[334543440,1723182639705,-151.0,0.000242,7]
[334543441,1723182639714,-1000.0,0.000242,2]
[334543442,1723182639725,-75886.83010308,0.000242,2]
[334543443,1723182639734,-151.0,0.000242,7]
[334543444,1723182639743,-151.0,0.000242,7]
[334543445,1723182639753,-3000.0,0.0002424,2]
[334543446,1723182639762,-151.0,0.00024299,7]
[334543447,1723182639772,-151.0,0.00024299,7]
[334543448,1723182639781,-154.284603,0.00024299,7]
[334543449,1723182639790,-154.284603,0.00024299,7]
[334543450,1723182639799,-604.16,0.00024299,5]
[334543451,1723182639809,-604.16,0.00024299,5]
[334543452,1723182639818,-500.0,0.00024299,5]
[334543453,1723182639828,-500.0,0.00024299,5]
[334543454,1723182639837,-221.224663,0.00024299,7]
[334543455,1723182639847,-500.0,0.00024299,5]
[334543456,1723182639857,-500.0,0.00024299,5]
[334543457,1723182639866,-500.0,0.00024299,5]
[334543458,1723182639876,-500.0,0.00024299,5]
[334543459,1723182639886,-500.0,0.00024299,5]
[334543460,1723182639896,-827.39,0.00024299,5]
[334543462,1723182639907,-569.67,0.00024299,5]
[334543464,1723182639916,-569.67,0.00024299,5]
[334543466,1723182639926,-500.0,0.00024299,5]
[334543468,1723182639935,-500.0,0.00024299,5]
[334543470,1723182639945,-500.0,0.00024299,5]
[334543472,1723182639954,-3973.64,0.00024299,5]
[334543474,1723182639964,-500.0,0.00024299,5]
[334543476,1723182639974,-554.4165474,0.00024299,5]
[334543478,1723182639984,-500.0,0.00024299,5]
[334543480,1723182639993,-500.0,0.00024299,5]
[334543482,1723182640003,-299.290004,0.00024299,7]
[334543484,1723182640012,-579.64,0.00024299,5]
[334543486,1723182640026,-151.0,0.00024299,7]
[334543488,1723182640037,-63086.52619584,0.000243,5]
[334543499,1723182641218,-302.49999997,0.00018697,2]
[334543501,1723182641230,-728.70000003,0.00018697,2]
[334543502,1723182641239,-155.0,0.00019319,2]
[334543504,1723182641249,-1031.2,0.00020961,2]
[334543506,1723182641258,-248.72669035,0.00023224,2]
[334543508,1723182641270,-782.47330965,0.00023224,2]
[334543509,1723182641279,-151.0,0.00024109,7]
[334543511,1723182641288,-235.482885,0.000242,7]
[334543513,1723182641298,-2807.06847142,0.000243,5]
[334543515,1723182641310,-661.55354577,0.000243,5]
[334543516,1723182641321,-9877.11765051,0.000243,5]
[334543550,1723182642979,-449.242,0.000243,5]
[334543552,1723182642990,-600.0,0.000243,5]
[334543554,1723182643164,-250.69,0.000243,5]
[334543555,1723182643176,-627.95000012,0.000243,5]
[334543564,1723182646090,-620.0,0.00013999,2]
[334543565,1723182646103,-1215.12268843,0.000243,5]
[334543566,1723182646115,-269.38241397,0.000243,5]
[334543567,1723182646127,-2580.28709736,0.000243,5]
[334543568,1723182646138,-1394.51005659,0.000243,5]
[334543569,1723182646149,-662.63936826,0.000243,5]
[334543570,1723182646161,-2678.93484286,0.000243,5]
[334543571,1723182646172,-2360.0,0.000243,5]
[334543572,1723182646183,-27466.2388339,0.000243,5]
[334543573,1723182646194,-15183.09361482,0.000243,5]
[334543574,1723182646205,-572.85,0.000243,5]
[334543575,1723182646260,-3638.98695082,0.000243,5]
[334543576,1723182646271,-910.07126,0.000243,5]
[334543577,1723182646282,-2522.7804,0.000243,5]
[334543578,1723182646293,-4610.71360311,0.000243,5]
[334543579,1723182646304,-517.49928082,0.000243,5]
[334543580,1723182646315,-292.78871425,0.000243,5]
[334543581,1723182646339,-1143.97892178,0.000243,5]
[334543610,1723182722399,-1055.27403171,0.00011005,2]
[334543611,1723182722727,-312.68040091,0.00011005,2]
[334543612,1723182722765,-551.59186738,0.00011005,2]
[334543617,1723182746756,503.68216433,0.00011005,2]
[334543618,1723182746785,719.01893555,0.00011005,2]
[334543620,1723182753559,156.37450547,0.00011005,2]
[334543623,1723182755908,162.94755584,0.00011005,2]
[334543625,1723182759193,16.93303485,0.00011005,2]
[334543626,1723182759222,210.7773325,0.00011005,2]
[334543631,1723182770021,170.43469918,0.00011005,2]
[334543638,1723182795319,182.09530578,0.00011005,2]
[334543639,1723182800718,200.0,0.00025,120]
[334543640,1723182832060,491.96669425,0.00012,2]
[334543641,1723182832098,1055.27403171,0.00012,2]
[334543642,1723182832126,1055.27403171,0.00012,2]
[334543643,1723182832153,547.48524233,0.00012,2]
[334543644,1723182842018,507.78878938,0.00011005,2]
[334543646,1723182913170,197.58922122,0.00010905,2]
[334543653,1723182979491,1309.46828647,0.00010905,2]
[334543658,1723183134867,156.64,0.00024872,120]
[334543678,1723183353629,587.03425419,0.00025,60]
[334543683,1723183403842,200.0,0.00025,120]
[334543689,1723183749689,-1209.26600417,0.00011004,2]
[334543691,1723183749731,-431.73399583,0.00011004,2]
[334543693,1723183749758,-150.0,0.00011004,2]
[334543696,1723183749786,-627.53200834,0.00011005,2]
[334543698,1723183749820,-1209.26600417,0.00011005,2]
[334543701,1723183749852,-1209.26600417,0.00011005,2]
[334543702,1723183749930,-1209.26600417,0.00011005,2]
[334543703,1723183749981,-1209.26600417,0.00011005,2]
[334543704,1723183750100,-1209.26600417,0.00011005,2]
[334543705,1723183750184,-969.14500537,0.00011005,2]
[334543714,1723183832071,-301.43759812,0.0001236,2]
[334543716,1723183832083,-1057.3,0.0001236,2]
[334543722,1723183832218,-551.46904425,0.0001236,2]
[334543723,1723183832230,-591.82453017,0.0001236,2]
[334543724,1723183832240,-631.24628472,0.00012681,2]
[334543725,1723183832252,-414.96820624,0.00012681,2]
[334543726,1723183832264,-210.9343706,0.00012681,2]
[334543727,1723183832273,-287.11790707,0.00012826,2]
[334543728,1723183832283,-300.0,0.00013132,2]
[334543729,1723183832292,-150.99,0.00013133,2]
[334543730,1723183832302,-285.94,0.00013315,2]
[334543731,1723183832312,-999.99,0.00013315,2]
[334543732,1723183832322,-5161.01,0.00013315,2]
[334543733,1723183832331,-5437.27,0.00013315,2]
[334543734,1723183832341,-44401.96212429,0.00013339,2]
[334543735,1723183832352,-538.88,0.00013339,2]
[334543736,1723183832365,-54581.22417569,0.00013339,2]
[334543737,1723183832380,-420.0,0.00014445,2]
[334543738,1723183832389,-150.99,0.00014602,2]
[334543740,1723183832399,-420.0,0.00015889,2]
[334543743,1723183832410,-499.99,0.00015889,2]
[334543745,1723183832419,-925.93,0.00018054,2]
[334543748,1723183832428,-179.26,0.00019279,2]
[334543751,1723183832438,-760.0,0.0001929,2]
[334543753,1723183832447,-250.0,0.00019301,2]
[334543756,1723183832457,-23900.0,0.00019514,2]
[334543759,1723183832467,-370.496253,0.00019725,2]
[334543761,1723183832476,-250.0,0.00019851,2]
[334543764,1723183832485,-156.64,0.00019897,2]
[334543766,1723183832495,-240.0,0.00019937,2]
[334543769,1723183832504,-868.8876107,0.0002,2]
[334543772,1723183832514,-2026.971,0.00020155,2]
[334543775,1723183832523,-36610.59096061,0.00020218,2]
[334543778,1723183832535,-619.48075157,0.00020218,2]
[334543782,1723183832547,-4531.33654972,0.00020218,2]
[334543845,1723183838219,-494.48,0.00019396,2]
[334543847,1723183838228,-115.61299413,0.00020218,2]
[334543850,1723183838240,-11243.75981618,0.00020218,2]
[334543852,1723183838249,-247.73955682,0.00020318,2]
[334543854,1723183838261,-678.19044318,0.00020318,2]
[334543856,1723183838270,-500.0,0.0002038,2]
[334543857,1723183838280,-170.99,0.00020543,2]
[334543858,1723183838289,-500.0,0.00020588,2]
[334543859,1723183838299,-3841.61955682,0.00020738,2]
[334543860,1723183838310,-1470.87908501,0.00020738,2]
[334543861,1723183838321,-2440.56888441,0.00020738,2]
[334543862,1723183838506,-349.44520651,0.00020738,2]
[334543863,1723183838517,-1443.59017763,0.00020738,2]
[334543864,1723183838528,-448.7075297,0.00020738,2]
[334543865,1723183838542,-18867.60699342,0.00020738,2]
[334543866,1723183838553,-24258.36363865,0.00020738,2]
[334543867,1723183838563,-473.26762201,0.00020899,2]
[334543868,1723183838572,-646.88280815,0.00021,2]
[334543869,1723183838582,-223.05,0.0002116,2]
[334543870,1723183838591,-223.05,0.00021165,2]
[334543871,1723183838601,-223.05,0.00021171,2]
[334543872,1723183838610,-223.05,0.00021176,2]
[334543873,1723183838619,-223.05,0.00021182,2]
[334543874,1723183838630,-223.05,0.00021187,2]
[334543875,1723183838639,-223.05,0.00021193,2]
[334543876,1723183838648,-223.05,0.00021198,2]
[334543877,1723183838657,-223.05,0.00021204,2]
[334543878,1723183838667,-223.05,0.0002121,2]
[334543879,1723183838676,-223.05,0.00021215,2]
[334543880,1723183838685,-223.05,0.00021221,2]
[334543881,1723183838694,-223.05,0.00021226,2]
[334543882,1723183838703,-223.05,0.00021232,2]
[334543883,1723183838712,-223.05,0.00021237,2]
[334543885,1723183838722,-223.05,0.00021243,2]
[334543887,1723183838731,-223.05,0.00021249,2]
[334543889,1723183838740,-223.05,0.00021254,2]
[334543891,1723183838749,-7800.46343329,0.00021258,2]
[334543902,1723183838883,-8855.38105538,0.00021258,2]
[334543904,1723183838894,-12200.0,0.00021258,2]
[334543905,1723183838904,-319.113795,0.00021258,2]
[334543907,1723183840160,-1257.14886156,0.00012666,2]
[334543908,1723183840170,-14993.93478708,0.00021258,2]
[334543910,1723183841190,-335.86804474,0.00021258,2]
[334543911,1723183841205,-668.93587333,0.00021258,2]
[334543912,1723183841218,-372.32617367,0.00021258,2]
[334543913,1723183841230,-278.90148228,0.00021258,2]
[334543914,1723183841242,-1171.36396679,0.00021258,2]
[334543915,1723183841254,-1181.8693022,0.00021258,2]
[334543916,1723183841266,-4942.62315839,0.00021258,2]
[334543917,1723183841275,-223.05,0.0002126,2]
[334543918,1723183841286,-223.05,0.00021265,2]
[334543919,1723183841296,-760.0,0.00021701,2]
[334543920,1723183841305,-3294.1669,0.00021726,2]
[334543921,1723183841316,-500.0,0.00021778,2]
[334543922,1723183841326,-53120.78107215,0.00021779,2]
[334543923,1723183841336,-53120.78107215,0.00022299,2]
[334543924,1723183841345,-161.438423,0.00022299,2]
[334543925,1723183841355,-240.0,0.00022429,2]
[334543926,1723183841365,-179.26,0.00022492,2]
[334543927,1723183841378,-925.93,0.00022582,2]
[334543928,1723183841387,-1000.0,0.000228,2]
[334543929,1723183841398,-18627.70490524,0.00022819,2]
[334543930,1723183841411,-1455.6116556,0.00022819,2]
[334543931,1723183841422,-19889.37369807,0.00022819,2]
[334543933,1723183841434,-653.44835085,0.00022819,2]
[334543935,1723183841445,-510.399,0.00022819,2]
[334543937,1723183841458,-1584.39682535,0.00022819,2]
[334543939,1723183841470,-1269.31016739,0.00022819,2]
[334543941,1723183841481,-568.13080662,0.00022819,2]
[334543971,1723183843569,-6.98289287,0.00020588,2]
[334543972,1723183843581,-504.68314267,0.00020588,2]
[334543973,1723183843591,-288.54067255,0.00020899,2]
[334543974,1723183843603,-258.08965603,0.00020899,2]
[334543975,1723183843612,-7107.06611397,0.00022819,2]
[334543976,1723183843623,-517.07260038,0.00022819,2]
[334543977,1723183843636,-938.26694868,0.00022819,2]
[334543978,1723183843645,-5443.80875133,0.00023339,2]
[334543979,1723183843676,-5724.1011184,0.00023339,2]
[334543980,1723183843688,-705.4608378,0.00023339,2]
[334543981,1723183843702,-630.33258922,0.00023339,2]
[334543982,1723183843714,-695.97984455,0.00023339,2]
[334543983,1723183843726,-353.59513999,0.00023339,2]
[334543984,1723183843737,-2320.0,0.00023339,2]
[334543985,1723183843749,-7130.5,0.00023339,2]
[334543986,1723183843765,-4949.20474853,0.00023339,2]
[334543987,1723183843777,-1000.0,0.00023339,2]
[334543995,1723183846334,-155.0,0.00020999,2]
[334543996,1723183846344,-126.818872,0.00023339,2]
[334543997,1723183846356,-3358.77699819,0.00023339,2]
[334543998,1723183846368,-419.14926228,0.00023339,2]
[334543999,1723183846932,-10069.33682356,0.00023339,2]
[334544000,1723183846945,-300.0,0.00023339,2]
[334544001,1723183846957,-264.208,0.00023339,2]
[334544002,1723183846970,-291.09122005,0.00023339,2]
[334544021,1723184001336,200.0,0.00025,120]
[334544033,1723184374950,412.43912633,0.00025,60]
[334544041,1723184602545,200.0,0.00025,120]
[334544051,1723184708791,959.86928053,0.00011,2]
[334544052,1723184708845,959.86928053,0.00011,2]
[334544053,1723184708877,959.86928053,0.00011,2]
[334544054,1723184708910,959.86928053,0.00011,2]
[334544055,1723184708943,725.73655705,0.00011,2]
[334544056,1723184708970,1305545.51452321,0.00011,2]
[334544057,1723184708999,4733961.63814545,0.00011,2]
[334544069,1723184783863,485.55826466,0.00011,2]
[334544071,1723184797798,20386.76664301,0.00011,2]
[334544076,1723184815241,14356.93650415,0.00011,2]
[334544077,1723184830577,426.48497822,0.00011,2]
[334544079,1723184835695,872.12298117,0.00011,2]
[334544080,1723184841527,426.48497822,0.00011,2]
[334544081,1723184844283,183662.98505552,0.00011,2]
[334544084,1723184847799,1268.69297036,0.00011,2]
[334544085,1723184851304,7577.72096623,0.00011,2]
[334544087,1723184854757,87523.80089384,0.0001099,2]
[334544091,1723184866300,7577.72096623,0.00011,2]
[334544093,1723184871533,760.2567842,0.00011,2]
[334544094,1723184872595,1309.89969901,0.00011,2]
[334544097,1723184874859,1223.55498284,0.00011,2]
[334544098,1723184877453,1284.86660241,0.00011,2]
[334544099,1723184878176,790.9462055,0.00011,2]
[334544102,1723184888401,411.87190944,0.00011,2]
[334544103,1723184889862,1223.55498284,0.00011,2]
[334544104,1723184890238,20388.48019643,0.00011,2]
[334544106,1723184894228,1868.2185256,0.00011,2]
[334544108,1723184897015,3066.53562459,0.00011,2]
[334544109,1723184901163,155.0,0.00011,2]
[334544110,1723184901215,155.21309104,0.00011,2]
[334544111,1723184902995,693.09243413,0.00011,2]
[334544112,1723184903134,155.07450981,0.00011,2]
[334544113,1723184903348,155.0,0.00011,2]
[334544114,1723184904298,227.71036735,0.00011,2]
[334544116,1723184906196,155.12036394,0.00011,2]
[334544117,1723184906274,159.03851619,0.00011,2]
[334544118,1723184906572,155.0,0.00011,2]
[334544119,1723184906868,485.55826466,0.00011,2]
[334544121,1723184908539,155.33500095,0.00011,2]
[334544122,1723184909258,363.96025495,0.00011,2]
[334544125,1723184910181,294.37562415,0.00011,2]
[334544126,1723184912322,1371.1363752,0.00011,2]
[334544127,1723184913228,14356.93650415,0.00011,2]
[334544128,1723184914318,291.55862315,0.00011,2]
[334544141,1723184934970,155.0,0.00011,2]
[334544149,1723184943164,872.12298117,0.00011,2]
[334544150,1723184944510,1284.86660241,0.00011,2]
[334544154,1723184954006,693.09243413,0.00011,2]
[334544172,1723184957910,1268.69297036,0.00011,2]
[334544173,1723184958163,872.12298117,0.00011,2]
[334544174,1723184960527,425.83516653,0.00011,2]
[334544175,1723184961175,790.9462055,0.00011,2]
[334544182,1723184963597,1308.82749717,0.00011,2]
[334544186,1723184971094,227.71036735,0.00011,2]
[334544189,1723184973521,760.2567842,0.00011,2]
[334544190,1723184974313,7577.72096623,0.00011,2]
[334544191,1723184976169,155.0,0.00011,2]
[334544193,1723184986741,20388.48019643,0.00011,2]
[334544196,1723184989195,1868.2185256,0.00011,2]
[334544197,1723184989542,760.2567842,0.00011,2]
[334544198,1723184990521,425.83516653,0.00011,2]
[334544199,1723184999820,1371.1363752,0.00011,2]
[334544200,1723185000408,411.87190944,0.00011,2]
[334544201,1723185001746,14356.93650415,0.00011,2]
[334544203,1723185003339,150.0,0.00011,2]
[334544204,1723185003492,150.0,0.00011,2]
[334544205,1723185003685,299.22338113,0.00011,2]
[334544206,1723185003819,291.55862315,0.00011,2]
[334544207,1723185004253,363.96025495,0.00011,2]
[334544211,1723185005864,709.25483355,0.00011,2]
[334544212,1723185006165,155.0,0.00011,2]
[334544214,1723185010902,485.55826466,0.00011,2]
[334544215,1723185011255,159.03851619,0.00011,2]
[334544216,1723185018358,155.29233006,0.00011,2]
[334544217,1723185018540,155.0,0.00011,2]
[334544220,1723185022968,155.0,0.00011,2]
[334544247,1723185032426,-191.41193805,0.00011324,2]
[334544248,1723185032436,-212.58806195,0.00011796,2]
[334544249,1723185032449,-677.01,0.00011796,2]
[334544250,1723185032460,-1002.293869,0.00011796,2]
[334544251,1723185032473,-995.87545876,0.00011796,2]
[334544252,1723185032485,-1139.9637227,0.00011796,2]
[334544253,1723185032497,-817.86208759,0.00011796,2]
[334544254,1723185032507,-1532.71980189,0.00012601,2]
[334544255,1723185032518,-3905.98716292,0.00012601,2]
[334544256,1723185032615,-298.86764319,0.00012601,2]
[334544257,1723185032625,-498.49140865,0.00012665,2]
[334544258,1723185032635,-3738.87239374,0.00012681,2]
[334544259,1723185032646,-621.77146932,0.00012681,2]
[334544260,1723185032658,-883.97785601,0.00012681,2]
[334544261,1723185032670,-450.25,0.00012681,2]
[334544262,1723185032682,-16763.40048862,0.00012681,2]
[334544329,1723185033480,1284.86660241,0.00011,2]
[334544338,1723185033555,155.0,0.00011,2]
[334544489,1723185035015,693.09243413,0.00011,2]
[334544515,1723185038538,-1879.79073718,0.00012681,2]
[334544516,1723185038551,-735.25,0.00012681,2]
[334544517,1723185038562,-33401.09212311,0.00012681,2]
[334544518,1723185038720,-1078.35172985,0.00012681,2]
[334544519,1723185038883,-353.01173433,0.00012681,2]
[334544553,1723185040631,-7110.18943778,0.00012681,2]
[334544554,1723185040641,-300.0,0.00012748,2]
[334544555,1723185040651,-150.0,0.00012748,2]
[334544556,1723185040661,-196.56350179,0.00012828,2]
[334544557,1723185040671,-35719.51924363,0.00012928,2]
[334544558,1723185040681,-35719.51924363,0.00012928,2]
[334544559,1723185040690,-550.0,0.00013,2]
[334544560,1723185040700,-15479.68735624,0.00013133,2]
[334544561,1723185040710,-185.55317953,0.00013233,2]
[334544562,1723185040720,-1633.9796717,0.00013283,2]
[334544564,1723185040729,-1500.0,0.00013283,2]
[334544566,1723185040739,-1184.7407605,0.00013283,2]
[334544567,1723185040749,-921.3480316,0.00013283,2]
[334544569,1723185040759,-962.26073749,0.00013283,2]
[334544570,1723185040768,-2341.29720318,0.00013283,2]
[334544571,1723185040777,-3028.29,0.00013297,2]
[334544572,1723185040788,-1275.34900939,0.00013297,2]
[334544573,1723185040797,-2840.45885609,0.00013297,2]
[334544574,1723185040807,-2145.43588228,0.00013297,2]
[334544575,1723185040816,-179.72707786,0.00013302,2]
[334544576,1723185040825,-872.12298117,0.00013333,2]
[334544577,1723185040835,-124253.38750028,0.00013333,2]
[334544578,1723185040843,-790.9462055,0.00013333,2]
[334544579,1723185040852,-578.13505365,0.00013333,2]
[334544581,1723185040861,-368.57059069,0.00013333,2]
[334544583,1723185040872,-733.3266693,0.00013333,2]
[334544585,1723185040881,-973.34185184,0.00013333,2]
[334544587,1723185040890,-227.71036735,0.00013333,2]
[334544589,1723185040899,-7577.72096623,0.00013333,2]
[334544591,1723185040909,-18602.21270159,0.00013333,2]
[334544593,1723185040920,-425.83516653,0.00013333,2]
[334544595,1723185040929,-1371.1363752,0.00013333,2]
[334544597,1723185040938,-2491.2890779,0.00013333,2]
[334544599,1723185040947,-450.18355467,0.00013339,2]
[334544600,1723185040955,-232.26068309,0.000134,2]
[334544602,1723185040965,-500.0,0.00014022,2]
[334544604,1723185040975,-420.0,0.00014023,2]
[334544607,1723185040986,-600.0,0.00015,2]
[334544609,1723185040997,-23900.0,0.00016215,2]
[334544611,1723185041007,-489.05,0.00016898,2]
[334544613,1723185041017,-7117.13,0.0001726,2]
[334544615,1723185041026,-818.04,0.00017399,2]
[334544617,1723185041036,-2523.14188,0.0001789,2]
[334544619,1723185041046,-1852.42,0.00018401,2]
[334544621,1723185041057,-200.0,0.00018455,2]
[334544623,1723185041067,-156.64,0.00018787,2]
[334544625,1723185041077,-456.0,0.00019192,2]
[334544627,1723185041088,-544.0,0.00019224,2]
[334544629,1723185041097,-250.0,0.0001931,2]
[334544631,1723185041105,-185.59,0.00019379,2]
[334544633,1723185041114,-818.04,0.00019663,2]
[334544635,1723185041123,-150.0,0.0002,15]
[334544637,1723185041132,-4139.30580733,0.0002,2]
[334544639,1723185041141,-159.09,0.00020102,2]
[334544641,1723185041151,-159.09,0.00020108,2]
[334544643,1723185041160,-159.09,0.00020115,2]
[334544645,1723185041171,-159.09,0.00020122,2]
[334544647,1723185041180,-159.09,0.00020128,2]
[334544649,1723185041189,-159.09,0.00020135,2]
[334544651,1723185041198,-159.09,0.00020142,2]
[334544653,1723185041207,-159.09,0.00020149,2]
[334544655,1723185041217,-159.09,0.00020155,2]
[334544657,1723185041226,-159.09,0.00020162,2]
[334544659,1723185041236,-159.09,0.00020169,2]
[334544661,1723185041246,-159.09,0.00020175,2]
[334544663,1723185041257,-159.09,0.00020182,2]
[334544665,1723185041267,-159.09,0.00020189,2]
[334544667,1723185041276,-159.09,0.00020196,2]
[334544669,1723185041285,-159.09,0.00020202,2]
[334544671,1723185041295,-2523.14189,0.0002039,2]
[334544673,1723185041305,-926.0,0.000207,4]
[334544675,1723185041315,-530.9531837,0.00020821,2]
[334544677,1723185041325,-370.496253,0.00020899,2]
[334544679,1723185041335,-7988.45170222,0.00021,4]
[334544681,1723185041345,-166.04,0.0002115,2]
[334544683,1723185041356,-456.0,0.00021591,2]
[334544685,1723185041366,-544.0,0.00021626,2]
[334544687,1723185041375,-17159.13672355,0.00021915,4]
[334544689,1723185041386,-818.04,0.00021927,2]
[334544691,1723185041395,-1000.0,0.000221,2]
[334544693,1723185041405,-2523.14188,0.0002289,2]
[334544695,1723185041414,-1000.0,0.00023,2]
[334544697,1723185041433,-154.71,0.000231,2]
[334544699,1723185041442,-212770.61015275,0.0002311,2]
[334544701,1723185041452,-545.42443183,0.00023271,2]
[334544703,1723185041462,-69637.5430633,0.00023371,2]
[334544705,1723185041472,-181.31413997,0.00023384,2]
[334544707,1723185041481,-93989.214759,0.00023387,2]
[334544709,1723185041490,-151.0,0.00023387,7]
[334544711,1723185041500,-151.0,0.00023387,7]
[334544713,1723185041510,-151.0,0.00023387,7]
[334544715,1723185041519,-151.0,0.00023387,7]
[334544717,1723185041529,-151.0,0.00023387,7]
[334544719,1723185041539,-16870.07600827,0.000234,2]
[334544721,1723185041548,-546.63032858,0.00023451,2]
[334544723,1723185041558,-26766.18178264,0.0002348,2]
[334544724,1723185041568,-1187.0,0.000235,2]
[334544725,1723185041578,-16870.07600827,0.00023567,2]
[334544726,1723185041587,-489.05,0.00023658,2]
[334544727,1723185041597,-533.08,0.00023671,2]
[334544728,1723185041606,-301.2,0.00023671,2]
[334544729,1723185041615,-530.8,0.00023671,2]
[334544730,1723185041625,-530.8,0.00023671,2]
[334544731,1723185041634,-16870.07600827,0.00023733,2]
[334544732,1723185041644,-500.0,0.00023759,2]
[334544733,1723185041654,-868.8876107,0.00023873,2]
[334544734,1723185041663,-155.0,0.00023873,2]
[334544735,1723185041674,-354.91490598,0.00023873,2]
[334544736,1723185041683,-16870.07600827,0.000239,2]
[334544737,1723185041694,-151.0,0.000239,7]
[334544738,1723185041705,-151.0,0.000239,7]
[334544739,1723185041715,-25665.73911952,0.00023959,5]
[334544740,1723185041725,-100000.0,0.0002396,2]
[334544741,1723185041734,-151.0,0.0002396,7]
[334544742,1723185041745,-151.0,0.0002396,7]
[334544743,1723185041754,-151.0,0.0002396,7]
[334544744,1723185041765,-192.922629,0.0002396,7]
[334544745,1723185041774,-456.0,0.0002399,2]
[334544746,1723185041784,-544.0,0.00024029,2]
[334544747,1723185041794,-151.894526,0.0002406,7]
[334544748,1723185041804,-151.0,0.0002406,7]
[334544749,1723185041813,-151.0,0.0002406,7]
[334544750,1723185041823,-178.942106,0.0002406,7]
[334544751,1723185041832,-151.0,0.0002406,7]
[334544752,1723185041842,-151.0,0.0002406,7]
[334544753,1723185041852,-16870.07600827,0.00024067,2]
[334544754,1723185041863,-201.67,0.00024103,5]
[334544755,1723185041873,-200.82,0.00024104,5]
[334544756,1723185041882,-1041.66,0.00024109,5]
[334544757,1723185041893,-1041.66,0.00024109,5]
[334544758,1723185041904,-500.0,0.00024109,5]
[334544759,1723185041913,-500.0,0.00024109,5]
[334544760,1723185041925,-500.0,0.00024109,5]
[334544761,1723185041935,-480.0,0.00024109,5]
[334544762,1723185042105,-500.0,0.00024109,5]
[334544763,1723185042115,-273.185,0.00024109,5]
[334544764,1723185042125,-500.0,0.00024109,5]